[Event "*** Titled Tuesday Blitz"]
[Site "Chess.com"]
[Date "2018.01.02"]
[Round "5"]
[White "Aariow"]
[Black "Robin-Side"]
[Result "0-1"]
[WhiteElo "2373"]
[BlackElo "2566"]
[TimeControl "180+2"]
[EndTime "14:01:36 PST"]
[Termination "Robin-Side won by resignation"]

1. d4 {[%clk 0:03:01.9]} 1... g6 {[%clk 0:02:59.6]} 2. c4 {[%clk 0:03:02.6]}
2... Bg7 {[%clk 0:02:59]} 3. e4 {[%clk 0:03:03.2]} 3... e6 {[%clk 0:03:00.4]} 4.
Ne2 {[%clk 0:03:02.6]} 4... Ne7 {[%clk 0:03:01.8]} 5. Be3 {[%clk 0:03:02.5]}
5... d5 {[%clk 0:03:02.9]} 6. e5 {[%clk 0:02:54.7]} 6... O-O {[%clk 0:03:03.2]}
7. g4 {[%clk 0:02:53.5]} 7... dxc4 {[%clk 0:02:58]} 8. Ng3 {[%clk 0:02:52.8]}
8... c5 {[%clk 0:02:55.1]} 9. f4 {[%clk 0:02:46.9]} 9... cxd4 {[%clk 0:02:53.8]}
10. Qxd4 {[%clk 0:02:47.4]} 10... Qxd4 {[%clk 0:02:41.5]} 11. Bxd4 {[%clk
0:02:49.3]} 11... Nbc6 {[%clk 0:02:42.9]} 12. Bc3 {[%clk 0:02:48.7]} 12... Nd5
{[%clk 0:02:43.7]} 13. Bd2 {[%clk 0:02:42.2]} 13... Nd4 {[%clk 0:02:41.8]} 14.
Na3 {[%clk 0:02:40.3]} 14... Nf3+ {[%clk 0:02:41.9]} 15. Ke2 {[%clk 0:02:41.4]}
15... Nxd2 {[%clk 0:02:42.9]} 16. Kxd2 {[%clk 0:02:43.3]} 16... Nxf4 {[%clk
0:02:44.1]} 17. Nxc4 {[%clk 0:02:43.7]} 17... b5 {[%clk 0:02:09.2]} 0-1

[Event "*** Titled Tuesday Blitz"]
[Site "Chess.com"]
[Date "2018.01.02"]
[Round "5"]
[White "FairChess_on_YouTube"]
[Black "kikydu96"]
[Result "1-0"]
[WhiteElo "2752"]
[BlackElo "2435"]
[TimeControl "180+2"]
[EndTime "14:03:39 PST"]
[Termination "FairChess_on_YouTube won by resignation"]

1. e4 {[%clk 0:03:01.9]} 1... e5 {[%clk 0:03:00.3]} 2. Nf3 {[%clk 0:03:02.2]}
2... Nc6 {[%clk 0:03:01.5]} 3. Bb5 {[%clk 0:03:02.8]} 3... Nf6 {[%clk
0:03:02.4]} 4. O-O {[%clk 0:03:02.4]} 4... Nxe4 {[%clk 0:03:02.6]} 5. d4 {[%clk
0:02:59.4]} 5... Nd6 {[%clk 0:03:03]} 6. dxe5 {[%clk 0:03:00.5]} 6... Nf5 {[%clk
0:03:02.3]} 7. Nc3 {[%clk 0:02:52.7]} 7... Be7 {[%clk 0:02:49.1]} 8. Nd5 {[%clk
0:02:44.6]} 8... O-O {[%clk 0:02:49.6]} 9. Bf4 {[%clk 0:02:44.1]} 9... a6 {[%clk
0:02:45.9]} 10. Bd3 {[%clk 0:02:43.4]} 10... d6 {[%clk 0:02:42.4]} 11. Re1
{[%clk 0:02:33.1]} 11... dxe5 {[%clk 0:02:40.9]} 12. Nxe7+ {[%clk 0:02:30.9]}
12... Nfxe7 {[%clk 0:02:36.1]} 13. Nxe5 {[%clk 0:02:29.3]} 13... Nxe5 {[%clk
0:02:35.6]} 14. Rxe5 {[%clk 0:02:19.1]} 14... Ng6 {[%clk 0:02:33.5]} 15. Qh5
{[%clk 0:02:13.7]} 15... Qf6 {[%clk 0:02:06.3]} 16. Bg3 {[%clk 0:02:12]} 16...
Be6 {[%clk 0:02:03.6]} 17. Rae1 {[%clk 0:02:01.5]} 17... c6 {[%clk 0:01:59.9]}
18. b3 {[%clk 0:02:00.3]} 18... Rfe8 {[%clk 0:01:52.8]} 19. R5e3 {[%clk
0:01:57.2]} 19... Bd7 {[%clk 0:01:50.5]} 20. Be5 {[%clk 0:01:46.9]} 20... Qh4
{[%clk 0:01:38.3]} 21. Bxg6 {[%clk 0:01:43.8]} 1-0

[Event "*** Titled Tuesday Blitz"]
[Site "Chess.com"]
[Date "2018.01.02"]
[Round "5"]
[White "littleozy"]
[Black "Jospem"]
[Result "0-1"]
[WhiteElo "2384"]
[BlackElo "2617"]
[TimeControl "180+2"]
[EndTime "14:03:48 PST"]
[Termination "Jospem won by resignation"]

1. d4 {[%clk 0:03:01.9]} 1... Nf6 {[%clk 0:03:00.4]} 2. c4 {[%clk 0:03:02.5]}
2... c5 {[%clk 0:03:01.9]} 3. dxc5 {[%clk 0:03:00.7]} 3... e6 {[%clk 0:03:02]}
4. a3 {[%clk 0:03:00.5]} 4... a5 {[%clk 0:02:59.5]} 5. Nf3 {[%clk 0:03:00.7]}
5... Bxc5 {[%clk 0:02:59.8]} 6. g3 {[%clk 0:02:59.9]} 6... Qb6 {[%clk
0:02:57.8]} 7. e3 {[%clk 0:02:58.1]} 7... d5 {[%clk 0:02:58.8]} 8. cxd5 {[%clk
0:02:56.9]} 8... exd5 {[%clk 0:02:58.9]} 9. Bg2 {[%clk 0:02:58.5]} 9... O-O
{[%clk 0:02:59.9]} 10. O-O {[%clk 0:02:59.4]} 10... Be6 {[%clk 0:02:53.3]} 11.
Nc3 {[%clk 0:02:59.8]} 11... Qd8 {[%clk 0:02:44.8]} 12. Nd4 {[%clk 0:02:58.5]}
12... Nc6 {[%clk 0:02:41.9]} 13. Ndb5 {[%clk 0:02:51.2]} 13... Re8 {[%clk
0:02:35]} 14. Ne2 {[%clk 0:02:49.8]} 14... Bg4 {[%clk 0:02:32.8]} 15. h3 {[%clk
0:02:43.5]} 15... Bxe2 {[%clk 0:02:28.7]} 16. Qxe2 {[%clk 0:02:44.2]} 16... d4
{[%clk 0:02:30.2]} 17. Qc2 {[%clk 0:02:44.3]} 17... Qb6 {[%clk 0:02:26.4]} 18.
exd4 {[%clk 0:02:44]} 18... Nxd4 {[%clk 0:02:25.8]} 19. Nxd4 {[%clk 0:02:44.2]}
19... Bxd4 {[%clk 0:02:27.7]} 20. Rb1 {[%clk 0:02:39.5]} 20... Rac8 {[%clk
0:02:24.7]} 21. Qf5 {[%clk 0:02:40.2]} 21... g6 {[%clk 0:02:24.5]} 22. Qf4
{[%clk 0:02:35.7]} 22... Nh5 {[%clk 0:02:23.3]} 23. Qh4 {[%clk 0:02:30.9]} 23...
Rc2 {[%clk 0:02:08.1]} 24. g4 {[%clk 0:02:19.4]} 24... Ree2 {[%clk 0:01:50.5]}
0-1

[Event "*** Titled Tuesday Blitz"]
[Site "Chess.com"]
[Date "2018.01.02"]
[Round "5"]
[White "Frolik67"]
[Black "tomsishere"]
[Result "1/2-1/2"]
[WhiteElo "2433"]
[BlackElo "2277"]
[TimeControl "180+2"]
[EndTime "14:04:23 PST"]
[Termination "Game drawn by repetition"]

1. e4 {[%clk 0:02:25.4]} 1... c5 {[%clk 0:02:58.6]} 2. Nf3 {[%clk 0:02:23.8]}
2... e6 {[%clk 0:02:57.7]} 3. d3 {[%clk 0:02:23.6]} 3... Nc6 {[%clk 0:02:57.2]}
4. g3 {[%clk 0:02:23.1]} 4... Nf6 {[%clk 0:02:56.1]} 5. Bg2 {[%clk 0:02:23.6]}
5... Be7 {[%clk 0:02:54.8]} 6. O-O {[%clk 0:02:23.6]} 6... O-O {[%clk
0:02:52.5]} 7. c3 {[%clk 0:02:20]} 7... d6 {[%clk 0:02:49.1]} 8. Qe2 {[%clk
0:02:18.4]} 8... Bd7 {[%clk 0:02:47.1]} 9. d4 {[%clk 0:02:18.4]} 9... cxd4
{[%clk 0:02:46.8]} 10. cxd4 {[%clk 0:02:20.3]} 10... d5 {[%clk 0:02:47.8]} 11.
e5 {[%clk 0:02:21.2]} 11... Ne4 {[%clk 0:02:48.5]} 12. Nbd2 {[%clk 0:02:22.4]}
12... Nxd2 {[%clk 0:02:48.4]} 13. Bxd2 {[%clk 0:02:24.3]} 13... Qb6 {[%clk
0:02:48]} 14. Bc3 {[%clk 0:02:24.4]} 14... Na5 {[%clk 0:02:45]} 15. h4 {[%clk
0:02:22.9]} 15... Rac8 {[%clk 0:02:41.8]} 16. Ng5 {[%clk 0:02:17.4]} 16... h6
{[%clk 0:02:38.2]} 17. Nf3 {[%clk 0:02:12.9]} 17... Bb4 {[%clk 0:02:30.7]} 18.
g4 {[%clk 0:02:04.6]} 18... Bxc3 {[%clk 0:02:25.5]} 19. bxc3 {[%clk 0:02:06.5]}
19... Bb5 {[%clk 0:02:25.9]} 20. Qc2 {[%clk 0:01:59.5]} 20... Bxf1 {[%clk
0:02:25.6]} 21. Bxf1 {[%clk 0:02:01.4]} 21... Nc4 {[%clk 0:02:24.5]} 22. g5
{[%clk 0:01:58.4]} 22... Qb2 {[%clk 0:02:21.9]} 23. Qd1 {[%clk 0:01:54.2]} 23...
Qxc3 {[%clk 0:02:13.3]} 24. gxh6 {[%clk 0:01:53.9]} 24... gxh6 {[%clk
0:02:11.9]} 25. Kh1 {[%clk 0:01:52.8]} 25... Kh8 {[%clk 0:02:09.4]} 26. Ng5
{[%clk 0:01:46.7]} 26... hxg5 {[%clk 0:01:57.6]} 27. Qh5+ {[%clk 0:01:46.5]}
27... Kg8 {[%clk 0:01:46]} 28. Qxg5+ {[%clk 0:01:46.2]} 28... Kh8 {[%clk
0:01:46.3]} 29. Qh6+ {[%clk 0:01:32.4]} 29... Kg8 {[%clk 0:01:46.6]} 30. Qg5+
{[%clk 0:01:32.7]} 30... Kh8 {[%clk 0:01:47.4]} 31. Qh6+ {[%clk 0:01:32.8]}
31... Kg8 {[%clk 0:01:46.8]} 32. Qg5+ {[%clk 0:01:33.1]} 32... Kh8 {[%clk
0:01:45.2]} 1/2-1/2

[Event "*** Titled Tuesday Blitz"]
[Site "Chess.com"]
[Date "2018.01.02"]
[Round "5"]
[White "viktorskliarov"]
[Black "Maitreia"]
[Result "1-0"]
[WhiteElo "2434"]
[BlackElo "2545"]
[TimeControl "180+2"]
[EndTime "14:04:47 PST"]
[Termination "viktorskliarov won by checkmate"]

1. e4 {[%clk 0:02:59.9]} 1... c5 {[%clk 0:03:00.8]} 2. Nf3 {[%clk 0:03:00.6]}
2... g6 {[%clk 0:03:02.2]} 3. d4 {[%clk 0:03:01.6]} 3... cxd4 {[%clk 0:03:04.1]}
4. Qxd4 {[%clk 0:03:02.8]} 4... Nf6 {[%clk 0:03:04.8]} 5. Bb5 {[%clk 0:03:03.5]}
5... a6 {[%clk 0:03:03.9]} 6. Qa4 {[%clk 0:03:04.2]} 6... Bg7 {[%clk 0:02:53.9]}
7. Nc3 {[%clk 0:03:04.2]} 7... O-O {[%clk 0:02:54.3]} 8. e5 {[%clk 0:03:05.3]}
8... Ne8 {[%clk 0:02:51.6]} 9. h4 {[%clk 0:03:05.6]} 9... Nc7 {[%clk 0:02:50.9]}
10. Bd3 {[%clk 0:03:05.6]} 10... b5 {[%clk 0:02:50.9]} 11. Qe4 {[%clk
0:03:06.1]} 11... Nc6 {[%clk 0:02:48.6]} 12. h5 {[%clk 0:03:07.2]} 12... b4
{[%clk 0:02:35.8]} 13. Ne2 {[%clk 0:02:45.3]} 13... d5 {[%clk 0:02:18.6]} 14.
Qh4 {[%clk 0:02:31.3]} 14... g5 {[%clk 0:01:55.4]} 15. Bxg5 {[%clk 0:02:15.7]}
15... h6 {[%clk 0:01:53.8]} 16. Bd2 {[%clk 0:01:58.1]} 16... Ne6 {[%clk
0:01:52.3]} 17. Qg3 {[%clk 0:01:50.7]} 17... Kh8 {[%clk 0:01:49.9]} 18. Rh4
{[%clk 0:01:43.7]} 18... Rg8 {[%clk 0:01:50.3]} 19. Rg4 {[%clk 0:01:06.8]} 19...
Nc5 {[%clk 0:01:51.3]} 20. Rxg7 {[%clk 0:01:07.6]} 20... Rxg7 {[%clk 0:01:53.2]}
21. Qf4 {[%clk 0:01:08.7]} 21... Nxd3+ {[%clk 0:01:51.7]} 22. cxd3 {[%clk
0:01:09.7]} 22... Rh7 {[%clk 0:01:40.7]} 23. Rc1 {[%clk 0:01:10.6]} 23... Bd7
{[%clk 0:01:39.2]} 24. e6 {[%clk 0:01:10.6]} 24... fxe6 {[%clk 0:01:36.2]} 25.
Rxc6 {[%clk 0:00:46.5]} 25... Bxc6 {[%clk 0:01:38.1]} 26. Ne5 {[%clk 0:00:47.8]}
26... Be8 {[%clk 0:01:38.2]} 27. Qf8# {[%clk 0:00:46.3]} 1-0

[Event "*** Titled Tuesday Blitz"]
[Site "Chess.com"]
[Date "2018.01.02"]
[Round "5"]
[White "grzechu96"]
[Black "RobertoJBM"]
[Result "0-1"]
[WhiteElo "2451"]
[BlackElo "2565"]
[TimeControl "180+2"]
[EndTime "14:04:51 PST"]
[Termination "RobertoJBM won by resignation"]

1. e4 {[%clk 0:03:01.9]} 1... c6 {[%clk 0:03:00.6]} 2. d4 {[%clk 0:03:02.6]}
2... d5 {[%clk 0:03:02.5]} 3. e5 {[%clk 0:03:02.5]} 3... Bf5 {[%clk 0:03:03.2]}
4. h4 {[%clk 0:03:03.8]} 4... Qb6 {[%clk 0:03:03.3]} 5. c4 {[%clk 0:03:04]} 5...
e6 {[%clk 0:03:00.2]} 6. Nc3 {[%clk 0:03:04.1]} 6... h6 {[%clk 0:02:59.8]} 7.
Nge2 {[%clk 0:02:58]} 7... dxc4 {[%clk 0:02:58.7]} 8. Ng3 {[%clk 0:02:59]} 8...
Bd3 {[%clk 0:02:58.1]} 9. Bxd3 {[%clk 0:03:00.3]} 9... cxd3 {[%clk 0:03:00]} 10.
Qxd3 {[%clk 0:03:01.9]} 10... Qa6 {[%clk 0:03:01.2]} 11. Qf3 {[%clk 0:02:55.5]}
11... Nd7 {[%clk 0:03:01.6]} 12. Nge2 {[%clk 0:02:52.5]} 12... Ne7 {[%clk
0:03:01.8]} 13. O-O {[%clk 0:02:52.6]} 13... Nd5 {[%clk 0:03:02.2]} 14. Ne4
{[%clk 0:02:51.2]} 14... Be7 {[%clk 0:03:02.5]} 15. Qg4 {[%clk 0:02:45.8]} 15...
g6 {[%clk 0:03:02.3]} 16. g3 {[%clk 0:02:34.5]} 16... O-O-O {[%clk 0:03:00.5]}
17. Qf3 {[%clk 0:02:32.6]} 17... Rdf8 {[%clk 0:03:01.2]} 18. N2c3 {[%clk
0:02:26.7]} 18... Kb8 {[%clk 0:02:58]} 19. a3 {[%clk 0:02:25.9]} 19... Ka8
{[%clk 0:02:54.4]} 20. Bd2 {[%clk 0:02:24.4]} 20... f5 {[%clk 0:02:46.4]} 21.
exf6 {[%clk 0:02:25]} 21... N7xf6 {[%clk 0:02:47.3]} 22. Nxf6 {[%clk 0:02:22.5]}
22... Bxf6 {[%clk 0:02:49.1]} 23. Qe4 {[%clk 0:02:23.4]} 23... Nxc3 {[%clk
0:02:47.8]} 24. Bxc3 {[%clk 0:02:22.3]} 24... Qc4 {[%clk 0:02:48.4]} 25. Rae1
{[%clk 0:02:17.8]} 25... g5 {[%clk 0:02:49.1]} 26. hxg5 {[%clk 0:02:15]} 26...
hxg5 {[%clk 0:02:48.4]} 27. Qxe6 {[%clk 0:02:16.1]} 27... Qd3 {[%clk 0:02:43.6]}
28. Qe4 {[%clk 0:02:10.3]} 28... Qb5 {[%clk 0:02:43.7]} 29. Kg2 {[%clk
0:02:06.2]} 29... c5 {[%clk 0:02:35.1]} 30. d5 {[%clk 0:01:53.9]} 30... Bxc3
{[%clk 0:02:35.4]} 31. bxc3 {[%clk 0:01:55.8]} 31... Qb3 {[%clk 0:02:24.5]} 32.
c4 {[%clk 0:01:17.1]} 32... Qxa3 {[%clk 0:02:24.2]} 33. d6 {[%clk 0:01:17.8]}
33... Qa4 {[%clk 0:01:53.8]} 34. Qd5 {[%clk 0:01:10.7]} 34... Qd7 {[%clk
0:01:53.1]} 35. Re7 {[%clk 0:01:11.3]} 35... Qh3+ {[%clk 0:01:53.6]} 0-1

[Event "*** Titled Tuesday Blitz"]
[Site "Chess.com"]
[Date "2018.01.02"]
[Round "5"]
[White "arna"]
[Black "angieflynn"]
[Result "1-0"]
[WhiteElo "2099"]
[BlackElo "1843"]
[TimeControl "180+2"]
[EndTime "14:05:03 PST"]
[Termination "arna won by checkmate"]

1. e4 {[%clk 0:03:01.9]} 1... e6 {[%clk 0:02:57.5]} 2. d4 {[%clk 0:03:01.3]}
2... d5 {[%clk 0:02:57.8]} 3. Nc3 {[%clk 0:03:01.6]} 3... Nf6 {[%clk 0:02:56.7]}
4. e5 {[%clk 0:03:00]} 4... Nfd7 {[%clk 0:02:56.9]} 5. f4 {[%clk 0:03:00.6]}
5... c5 {[%clk 0:02:56.5]} 6. Nf3 {[%clk 0:03:00.9]} 6... Nc6 {[%clk 0:02:56.9]}
7. Be3 {[%clk 0:03:02.3]} 7... Be7 {[%clk 0:02:44.9]} 8. Qd2 {[%clk 0:03:01.8]}
8... a6 {[%clk 0:02:45.1]} 9. Be2 {[%clk 0:02:54.9]} 9... Qc7 {[%clk 0:02:44.1]}
10. O-O {[%clk 0:02:54.1]} 10... f5 {[%clk 0:02:37.1]} 11. exf6 {[%clk
0:02:15.8]} 11... Bxf6 {[%clk 0:02:37.7]} 12. dxc5 {[%clk 0:02:03.5]} 12... O-O
{[%clk 0:02:37.2]} 13. Na4 {[%clk 0:01:27.8]} 13... Kh8 {[%clk 0:01:53.6]} 14.
Ng5 {[%clk 0:01:00.2]} 14... Nd8 {[%clk 0:01:06.8]} 15. Qd3 {[%clk 0:00:34.1]}
15... Qc6 {[%clk 0:01:00.8]} 16. Qxh7# {[%clk 0:00:11.6]} 1-0

[Event "*** Titled Tuesday Blitz"]
[Site "Chess.com"]
[Date "2018.01.02"]
[Round "5"]
[White "chito89"]
[Black "IamSchrodingersCat"]
[Result "1-0"]
[WhiteElo "2591"]
[BlackElo "2380"]
[TimeControl "180+2"]
[EndTime "14:05:14 PST"]
[Termination "chito89 won by resignation"]

1. e4 {[%clk 0:03:01.7]} 1... c5 {[%clk 0:03:00.3]} 2. Nf3 {[%clk 0:03:02.4]}
2... d6 {[%clk 0:03:01.3]} 3. Bb5+ {[%clk 0:03:01]} 3... Nc6 {[%clk 0:03:01.1]}
4. O-O {[%clk 0:03:01.7]} 4... Bd7 {[%clk 0:03:01.1]} 5. c3 {[%clk 0:03:03]}
5... Nf6 {[%clk 0:03:01.2]} 6. Re1 {[%clk 0:03:04.1]} 6... a6 {[%clk 0:03:02.4]}
7. Ba4 {[%clk 0:03:04.8]} 7... b5 {[%clk 0:03:02.3]} 8. Bc2 {[%clk 0:03:04.1]}
8... Bg4 {[%clk 0:03:03.4]} 9. h3 {[%clk 0:03:04.7]} 9... Bxf3 {[%clk
0:03:03.4]} 10. Qxf3 {[%clk 0:03:05.4]} 10... g6 {[%clk 0:03:05.3]} 11. a4
{[%clk 0:03:06]} 11... Bg7 {[%clk 0:02:36]} 12. axb5 {[%clk 0:03:04.6]} 12...
axb5 {[%clk 0:02:37.9]} 13. Rxa8 {[%clk 0:03:04.8]} 13... Qxa8 {[%clk
0:02:39.8]} 14. e5 {[%clk 0:03:06]} 14... dxe5 {[%clk 0:02:40.7]} 15. Rxe5
{[%clk 0:03:06.7]} 15... Nd7 {[%clk 0:02:20.4]} 16. Re1 {[%clk 0:03:06.1]} 16...
O-O {[%clk 0:02:14.1]} 17. Na3 {[%clk 0:03:04.7]} 17... b4 {[%clk 0:02:09.1]}
18. Nc4 {[%clk 0:03:01.1]} 18... Nde5 {[%clk 0:01:51.3]} 19. Nxe5 {[%clk
0:02:57.4]} 19... Nxe5 {[%clk 0:01:53.2]} 20. Qe3 {[%clk 0:02:48.3]} 20... bxc3
{[%clk 0:01:06.9]} 21. bxc3 {[%clk 0:02:28.6]} 21... c4 {[%clk 0:01:03.7]} 22.
Qc5 {[%clk 0:02:25.3]} 22... Nd3 {[%clk 0:00:24.4]} 23. Bxd3 {[%clk 0:02:24.5]}
23... cxd3 {[%clk 0:00:26.3]} 24. Qxe7 {[%clk 0:02:24.5]} 24... Qa6 {[%clk
0:00:22.7]} 25. Ba3 {[%clk 0:02:23.5]} 25... Ra8 {[%clk 0:00:17.1]} 26. Bb4
{[%clk 0:02:23.3]} 26... h5 {[%clk 0:00:15.1]} 27. Qd7 {[%clk 0:02:22.8]} 27...
Bh6 {[%clk 0:00:12.3]} 28. Re8+ {[%clk 0:02:20.4]} 28... Rxe8 {[%clk 0:00:10.4]}
29. Qxe8+ {[%clk 0:02:22]} 29... Kg7 {[%clk 0:00:06]} 30. Qf8+ {[%clk
0:02:18.9]} 30... Kf6 {[%clk 0:00:03.2]} 31. Qxh6 {[%clk 0:02:19.4]} 1-0

[Event "*** Titled Tuesday Blitz"]
[Site "Chess.com"]
[Date "2018.01.02"]
[Round "5"]
[White "sandager"]
[Black "CookiesAndIceCream"]
[Result "0-1"]
[WhiteElo "1964"]
[BlackElo "2063"]
[TimeControl "180+2"]
[EndTime "14:05:18 PST"]
[Termination "CookiesAndIceCream won by resignation"]

1. e4 {[%clk 0:03:01.9]} 1... e5 {[%clk 0:03:00.7]} 2. Nf3 {[%clk 0:03:02]} 2...
Nc6 {[%clk 0:03:02.1]} 3. Bb5 {[%clk 0:03:02.5]} 3... g6 {[%clk 0:03:02.7]} 4.
O-O {[%clk 0:03:01.6]} 4... Bg7 {[%clk 0:03:04]} 5. c3 {[%clk 0:03:01.9]} 5...
Nge7 {[%clk 0:03:05.2]} 6. d4 {[%clk 0:03:02.4]} 6... exd4 {[%clk 0:03:06.5]} 7.
cxd4 {[%clk 0:03:03.2]} 7... a6 {[%clk 0:03:08.1]} 8. Ba4 {[%clk 0:03:02.9]}
8... b5 {[%clk 0:03:09.3]} 9. Bb3 {[%clk 0:03:03.2]} 9... Na5 {[%clk 0:03:10.5]}
10. Bc2 {[%clk 0:03:03.1]} 10... d6 {[%clk 0:03:10.8]} 11. Nc3 {[%clk
0:03:03.3]} 11... O-O {[%clk 0:03:10.2]} 12. h3 {[%clk 0:03:03.1]} 12... Bb7
{[%clk 0:03:09.8]} 13. Re1 {[%clk 0:03:02.2]} 13... Qd7 {[%clk 0:03:11]} 14. Bg5
{[%clk 0:02:54.7]} 14... h6 {[%clk 0:03:10.6]} 15. Be3 {[%clk 0:02:51.1]} 15...
Nc4 {[%clk 0:03:10.6]} 16. Bc1 {[%clk 0:02:51.1]} 16... Rae8 {[%clk 0:03:10.6]}
17. b3 {[%clk 0:02:51.2]} 17... Nb6 {[%clk 0:03:11.7]} 18. Bb2 {[%clk
0:02:50.5]} 18... f5 {[%clk 0:03:12.6]} 19. e5 {[%clk 0:02:41.1]} 19... Ned5
{[%clk 0:03:13.7]} 20. Ne2 {[%clk 0:02:04.5]} 20... Nb4 {[%clk 0:03:04.9]} 21.
Nf4 {[%clk 0:01:56.2]} 21... Nxc2 {[%clk 0:02:36.8]} 22. Qxc2 {[%clk 0:01:55.3]}
22... Bxf3 {[%clk 0:02:33.4]} 23. gxf3 {[%clk 0:01:55.2]} 23... g5 {[%clk
0:02:06.6]} 24. Nh5 {[%clk 0:01:41.9]} 24... Nd5 {[%clk 0:01:59.7]} 25. b4
{[%clk 0:01:26.5]} 25... Qf7 {[%clk 0:01:50.8]} 26. Nxg7 {[%clk 0:01:26.1]}
26... Kxg7 {[%clk 0:01:50.9]} 27. Rac1 {[%clk 0:01:20.5]} 27... Re7 {[%clk
0:01:37.3]} 28. Qc6 {[%clk 0:01:07.5]} 28... Nf4 {[%clk 0:01:34.1]} 29. Kh2
{[%clk 0:01:05.8]} 29... Qh5 {[%clk 0:01:33.4]} 30. Qxc7 {[%clk 0:00:39]} 30...
Qxh3+ {[%clk 0:01:21.9]} 0-1

[Event "*** Titled Tuesday Blitz"]
[Site "Chess.com"]
[Date "2018.01.02"]
[Round "5"]
[White "djogrodek1"]
[Black "Kirill_Klukin"]
[Result "1/2-1/2"]
[WhiteElo "2452"]
[BlackElo "2467"]
[TimeControl "180+2"]
[EndTime "14:05:30 PST"]
[Termination "Game drawn by agreement"]

1. e4 {[%clk 0:03:01.9]} 1... c5 {[%clk 0:03:00.7]} 2. Nf3 {[%clk 0:03:02.6]}
2... Nc6 {[%clk 0:03:02]} 3. Bb5 {[%clk 0:03:03.2]} 3... d6 {[%clk 0:03:02.9]}
4. O-O {[%clk 0:03:03.6]} 4... Bd7 {[%clk 0:03:04.2]} 5. Re1 {[%clk 0:03:03.8]}
5... Nf6 {[%clk 0:03:05.7]} 6. c3 {[%clk 0:03:04]} 6... a6 {[%clk 0:03:05.3]} 7.
Bf1 {[%clk 0:03:03.5]} 7... Bg4 {[%clk 0:03:05.4]} 8. d4 {[%clk 0:03:04.1]} 8...
cxd4 {[%clk 0:03:06]} 9. cxd4 {[%clk 0:03:06]} 9... d5 {[%clk 0:03:07.4]} 10.
exd5 {[%clk 0:03:06.2]} 10... Nxd5 {[%clk 0:03:08.2]} 11. Nc3 {[%clk 0:03:05.7]}
11... e6 {[%clk 0:03:09.5]} 12. h3 {[%clk 0:03:06.2]} 12... Bh5 {[%clk
0:03:09.7]} 13. g4 {[%clk 0:02:43.7]} 13... Bg6 {[%clk 0:03:09.6]} 14. Qb3
{[%clk 0:02:42.4]} 14... Be7 {[%clk 0:02:30.6]} 15. Nxd5 {[%clk 0:02:21.4]}
15... Qxd5 {[%clk 0:02:29.1]} 16. Qxd5 {[%clk 0:01:58.8]} 16... exd5 {[%clk
0:02:29.5]} 17. Bf4 {[%clk 0:02:00.7]} 17... Be4 {[%clk 0:02:28.7]} 18. Bg2
{[%clk 0:01:57.7]} 18... O-O {[%clk 0:02:18.6]} 19. Ne5 {[%clk 0:01:42.8]} 19...
Nxd4 {[%clk 0:02:05.7]} 20. Bxe4 {[%clk 0:01:41.1]} 20... dxe4 {[%clk
0:02:06.7]} 21. Rxe4 {[%clk 0:01:42.8]} 21... Ne6 {[%clk 0:02:08.1]} 22. Be3
{[%clk 0:01:36.5]} 22... Rfd8 {[%clk 0:02:07.1]} 23. Rc1 {[%clk 0:01:30.2]}
23... Bf6 {[%clk 0:02:05.4]} 24. b3 {[%clk 0:01:20.6]} 24... Bxe5 {[%clk
0:01:51.4]} 25. Rxe5 {[%clk 0:01:20.7]} 25... Rac8 {[%clk 0:01:52.9]} 26. Re1
{[%clk 0:01:10.8]} 26... Rc2 {[%clk 0:01:50.5]} 27. f4 {[%clk 0:01:07.6]} 27...
h6 {[%clk 0:01:38.9]} 28. f5 {[%clk 0:00:59.8]} 28... Ng5 {[%clk 0:01:37.7]} 29.
Bxg5 {[%clk 0:00:57.4]} 29... hxg5 {[%clk 0:01:38.6]} 30. Re8+ {[%clk
0:00:59.3]} 30... Rxe8 {[%clk 0:01:40]} 31. Rxe8+ {[%clk 0:01:01.2]} 31... Kh7
{[%clk 0:01:41.6]} 32. Re7 {[%clk 0:01:03.1]} 32... f6 {[%clk 0:01:41.1]} 33.
Rxb7 {[%clk 0:00:59]} 33... Rxa2 {[%clk 0:01:42]} 34. b4 {[%clk 0:00:59.5]}
34... Rb2 {[%clk 0:01:42.9]} 35. Rb6 {[%clk 0:00:59.7]} 35... Kh6 {[%clk
0:01:41.2]} 36. Rxa6 {[%clk 0:00:59.2]} 36... Rxb4 {[%clk 0:01:42.1]} 37. Ra8
{[%clk 0:00:59.7]} 37... Kh7 {[%clk 0:01:42.7]} 38. Kg2 {[%clk 0:00:59.1]} 38...
Rb2+ {[%clk 0:01:43.8]} 39. Kg3 {[%clk 0:01:00.1]} 39... Rb3+ {[%clk 0:01:44.9]}
40. Kg2 {[%clk 0:01:01.5]} 1/2-1/2

[Event "*** Titled Tuesday Blitz"]
[Site "Chess.com"]
[Date "2018.01.02"]
[Round "5"]
[White "abruptum"]
[Black "Bryakin_Mikhail"]
[Result "0-1"]
[WhiteElo "2302"]
[BlackElo "2526"]
[TimeControl "180+2"]
[EndTime "14:05:30 PST"]
[Termination "Bryakin_Mikhail won by resignation"]

1. d4 {[%clk 0:03:01.9]} 1... d5 {[%clk 0:02:55]} 2. c4 {[%clk 0:03:02.7]} 2...
c6 {[%clk 0:02:53.8]} 3. Nc3 {[%clk 0:03:03.5]} 3... dxc4 {[%clk 0:02:52.8]} 4.
e4 {[%clk 0:03:03.5]} 4... b5 {[%clk 0:02:53.3]} 5. a4 {[%clk 0:03:03.5]} 5...
b4 {[%clk 0:02:54.2]} 6. Nce2 {[%clk 0:03:04.6]} 6... Ba6 {[%clk 0:02:45.2]} 7.
Ng3 {[%clk 0:03:04.1]} 7... Nd7 {[%clk 0:02:41.9]} 8. Nf3 {[%clk 0:03:04.5]}
8... e5 {[%clk 0:02:39.1]} 9. Be2 {[%clk 0:02:39.4]} 9... exd4 {[%clk
0:01:52.2]} 10. Nxd4 {[%clk 0:02:39.7]} 10... Qc7 {[%clk 0:01:40.2]} 11. O-O
{[%clk 0:02:35.9]} 11... Bc5 {[%clk 0:01:33.8]} 12. Be3 {[%clk 0:02:21.9]} 12...
Rd8 {[%clk 0:01:22.1]} 13. Qc1 {[%clk 0:02:11.1]} 13... Ne5 {[%clk 0:01:15.8]}
14. Ndf5 {[%clk 0:02:05.6]} 14... Bxe3 {[%clk 0:01:10.5]} 15. fxe3 {[%clk
0:02:02.3]} 15... g6 {[%clk 0:01:01.3]} 16. Ng7+ {[%clk 0:02:03]} 16... Ke7
{[%clk 0:01:02.4]} 17. b3 {[%clk 0:01:55.6]} 17... Nf6 {[%clk 0:01:00.7]} 18.
bxc4 {[%clk 0:01:52.2]} 18... Rhg8 {[%clk 0:00:59.6]} 19. Qb2 {[%clk 0:01:52.5]}
19... Rxg7 {[%clk 0:00:55.4]} 20. Qxb4+ {[%clk 0:01:51.6]} 20... c5 {[%clk
0:00:56.6]} 21. Qc3 {[%clk 0:01:51.6]} 21... Ne8 {[%clk 0:00:40.7]} 22. Rab1
{[%clk 0:01:46.4]} 22... f6 {[%clk 0:00:40.2]} 23. a5 {[%clk 0:01:42.5]} 23...
Kf8 {[%clk 0:00:39.3]} 24. Bd1 {[%clk 0:01:39.5]} 24... Re7 {[%clk 0:00:34.1]}
25. Ba4 {[%clk 0:01:37.6]} 25... Kg7 {[%clk 0:00:34.3]} 26. Bb5 {[%clk
0:01:36.5]} 26... Bb7 {[%clk 0:00:33.2]} 27. Bxe8 {[%clk 0:01:36]} 27... Rexe8
{[%clk 0:00:33.3]} 28. Ne2 {[%clk 0:01:33.6]} 28... Bxe4 {[%clk 0:00:33.5]} 29.
Rb5 {[%clk 0:01:33.4]} 29... Bd3 {[%clk 0:00:27.9]} 0-1